[Event "Titled Tuesday Blitz July 11 Early 2023"]
[White "SicilianPanzer"]
[Black "Reprintsev, Alexander"]
[BlackFideId "14100541"]
[WhiteElo "2259"]
[BlackElo "2497"]
[Result "0-1"]
[Round "11"]
[TimeControl "180+2"]
[Date "2023.07.11"]
[WhiteClock "0:00:41"]
[BlackClock "0:01:10"]
[Board "89"]

1. e4 {[%clk 0:03:00]}  d5 {[%clk 0:02:37]} 2. exd5 {[%clk 0:02:56]}  Qxd5 {[%clk 0:02:36]} 3. d4 {[%clk 0:02:55]}  Nc6 {[%clk 0:02:34]} 4. Nf3 {[%clk 0:02:53]}  Bg4 {[%clk 0:02:33]} 5. Be2 {[%clk 0:02:53]}  O-O-O {[%clk 0:02:32]} 6. c4 {[%clk 0:02:51]}  Qf5 {[%clk 0:02:30]} 7. Be3 {[%clk 0:01:55]}  Bxf3 {[%clk 0:02:27]} 8. Bxf3 {[%clk 0:01:55]}  Nxd4 {[%clk 0:02:28]} 9. Bxd4 {[%clk 0:01:54]}  Qe6+ {[%clk 0:02:28]} 10. Be2 {[%clk 0:01:53]}  c5 {[%clk 0:02:27]} 11. O-O {[%clk 0:01:47]}  cxd4 {[%clk 0:02:27]} 12. Re1 {[%clk 0:01:39]}  Nf6 {[%clk 0:02:23]} 13. c5 {[%clk 0:01:37]}  Kb8 {[%clk 0:02:05]} 14. Na3 {[%clk 0:01:36]}  Qd5 {[%clk 0:01:58]} 15. b4 {[%clk 0:01:33]}  e5 {[%clk 0:01:57]} 16. Bc4 {[%clk 0:01:29]}  Qd7 {[%clk 0:01:48]} 17. Rxe5 {[%clk 0:01:28]}  d3 {[%clk 0:01:44]} 18. Qd2 {[%clk 0:01:17]}  Ng4 {[%clk 0:01:20]} 19. Re4 {[%clk 0:01:15]}  f5 {[%clk 0:01:20]} 20. Be6 {[%clk 0:01:05]}  Qc7 {[%clk 0:01:18]} 21. Rf4 {[%clk 0:00:44]}  g5 {[%clk 0:01:13]} 22. Nb5 {[%clk 0:00:41]}  Qxf4 {[%clk 0:01:10]} 0-1


[Site "https://www.chess.com"]

[Event "Titled Tuesday Blitz July 11 Early 2023"]
[White "Nagare Kaivalya Sandip"]
[Black "KorolDimitriy75"]
[WhiteFideId "25957929"]
[WhiteElo "2633"]
[BlackElo "2437"]
[Result "0-1"]
[Round "11"]
[TimeControl "180+2"]
[Date "2023.07.11"]
[WhiteClock "0:02:52"]
[BlackClock "0:02:28"]
[Board "92"]

1. e4 {[%clk 0:03:00]}  c5 {[%clk 0:02:59]} 2. Nf3 {[%clk 0:03:01]}  d6 {[%clk 0:02:59]} 3. d4 {[%clk 0:03:01]}  cxd4 {[%clk 0:03:00]} 4. Nxd4 {[%clk 0:03:02]}  Nf6 {[%clk 0:03:00]} 5. Nc3 {[%clk 0:03:02]}  g6 {[%clk 0:03:01]} 6. Be3 {[%clk 0:03:01]}  Bg7 {[%clk 0:03:01]} 7. f3 {[%clk 0:03:01]}  O-O {[%clk 0:03:02]} 8. Qd2 {[%clk 0:03:01]}  Nc6 {[%clk 0:03:03]} 9. O-O-O {[%clk 0:03:01]}  d5 {[%clk 0:03:03]} 10. exd5 {[%clk 0:02:57]}  Nxd5 {[%clk 0:03:03]} 11. Nxc6 {[%clk 0:02:57]}  bxc6 {[%clk 0:03:04]} 12. Bd4 {[%clk 0:02:58]}  e5 {[%clk 0:03:04]} 13. Bc5 {[%clk 0:02:57]}  Be6 {[%clk 0:03:04]} 14. Kb1 {[%clk 0:02:54]}  Nxc3+ {[%clk 0:03:00]} 15. bxc3 {[%clk 0:02:52]}  Qa5 {[%clk 0:02:28]} 0-1


[Site "https://www.chess.com"]

[Event "Titled Tuesday Blitz July 11 Early 2023"]
[White "Tokman, Ariel"]
[Black "Rian, Kapriaga"]
[WhiteFideId "117420"]
[BlackFideId "7103263"]
[WhiteElo "2519"]
[BlackElo "2387"]
[Result "1-0"]
[Round "11"]
[TimeControl "180+2"]
[Date "2023.07.11"]
[WhiteClock "0:00:12"]
[BlackClock "0:00:00"]
[Board "97"]

1. c4 {[%clk 0:03:00]}  e6 {[%clk 0:02:46]} 2. Nc3 {[%clk 0:03:00]}  d5 {[%clk 0:02:46]} 3. d4 {[%clk 0:03:01]}  Nf6 {[%clk 0:02:45]} 4. Nf3 {[%clk 0:03:00]}  Be7 {[%clk 0:02:45]} 5. g3 {[%clk 0:03:01]}  O-O {[%clk 0:02:43]} 6. Bg2 {[%clk 0:03:01]}  dxc4 {[%clk 0:02:35]} 7. Qa4 {[%clk 0:02:56]}  c5 {[%clk 0:02:31]} 8. dxc5 {[%clk 0:02:55]}  Bxc5 {[%clk 0:02:30]} 9. Qxc4 {[%clk 0:02:54]}  Be7 {[%clk 0:02:24]} 10. O-O {[%clk 0:02:54]}  Nc6 {[%clk 0:02:24]} 11. Rd1 {[%clk 0:02:47]}  Qa5 {[%clk 0:02:23]} 12. Bg5 {[%clk 0:02:38]}  h6 {[%clk 0:02:21]} 13. Bf4 {[%clk 0:02:34]}  e5 {[%clk 0:02:20]} 14. Be3 {[%clk 0:02:25]}  Be6 {[%clk 0:02:19]} 15. Qb5 {[%clk 0:02:25]}  Qc7 {[%clk 0:02:03]} 16. Rac1 {[%clk 0:01:49]}  Rfd8 {[%clk 0:02:00]} 17. Rxd8+ {[%clk 0:01:44]}  Rxd8 {[%clk 0:01:59]} 18. Qa4 {[%clk 0:01:26]}  a6 {[%clk 0:01:57]} 19. a3 {[%clk 0:01:07]}  Ng4 {[%clk 0:01:55]} 20. Bd2 {[%clk 0:01:01]}  Qb6 {[%clk 0:01:49]} 21. Be1 {[%clk 0:01:02]}  Qxb2 {[%clk 0:01:48]} 22. Rb1 {[%clk 0:00:58]}  Qxa3 {[%clk 0:01:39]} 23. Qxa3 {[%clk 0:00:51]}  Bxa3 {[%clk 0:01:39]} 24. Rxb7 {[%clk 0:00:52]}  Bb4 {[%clk 0:01:26]} 25. h3 {[%clk 0:00:48]}  Nf6 {[%clk 0:01:25]} 26. Rb6 {[%clk 0:00:43]}  Rc8 {[%clk 0:01:11]} 27. Nxe5 {[%clk 0:00:38]}  Nxe5 {[%clk 0:01:00]} 28. Rxb4 {[%clk 0:00:36]}  Bc4 {[%clk 0:00:47]} 29. f4 {[%clk 0:00:24]}  Ned7 {[%clk 0:00:46]} 30. Kf2 {[%clk 0:00:23]}  h5 {[%clk 0:00:30]} 31. Rb7 {[%clk 0:00:22]}  Nc5 {[%clk 0:00:26]} 32. Ra7 {[%clk 0:00:22]}  Ne8 {[%clk 0:00:12]} 33. Bd2 {[%clk 0:00:22]}  Nf6 {[%clk 0:00:12]} 34. Be3 {[%clk 0:00:21]}  Ne6 {[%clk 0:00:11]} 35. f5 {[%clk 0:00:16]}  Nc5 {[%clk 0:00:08]} 36. Bd4 {[%clk 0:00:16]}  Ncd7 {[%clk 0:00:07]} 37. e3 {[%clk 0:00:16]}  Kh8 {[%clk 0:00:05]} 38. Ne4 {[%clk 0:00:16]}  Nxe4+ {[%clk 0:00:05]} 39. Bxe4 {[%clk 0:00:17]}  Nf6 {[%clk 0:00:04]} 40. Bf3 {[%clk 0:00:14]}  Kg8 {[%clk 0:00:04]} 41. Bxf6 {[%clk 0:00:13]}  gxf6 {[%clk 0:00:04]} 42. Bxh5 {[%clk 0:00:14]}  Rd8 {[%clk 0:00:04]} 43. e4 {[%clk 0:00:13]}  Bb5 {[%clk 0:00:03]} 44. Bf3 {[%clk 0:00:13]}  Rd2+ {[%clk 0:00:03]} 45. Ke3 {[%clk 0:00:13]}  Rb2 {[%clk 0:00:02]} 46. Kf4 {[%clk 0:00:13]}  Rf2 {[%clk 0:00:02]} 47. Ke3 {[%clk 0:00:13]}  Rb2 {[%clk 0:00:02]} 48. h4 {[%clk 0:00:13]}  Rb3+ {[%clk 0:00:02]} 49. Kf4 {[%clk 0:00:14]}  Rb2 {[%clk 0:00:02]} 50. Bd1 {[%clk 0:00:13]}  Rd2 {[%clk 0:00:02]} 51. Bb3 {[%clk 0:00:12]}  Rd3 {[%clk 0:00:00]} 52. Bxf7+ {[%clk 0:00:12]} 1-0


[Site "https://www.chess.com"]

[Event "Titled Tuesday Blitz July 11 Early 2023"]
[White "Ljukin, Sergei"]
[Black "Wang2007"]
[WhiteFideId "14102200"]
[WhiteElo "2493"]
[BlackElo "2332"]
[Result "1-0"]
[Round "11"]
[TimeControl "180+2"]
[Date "2023.07.11"]
[WhiteClock "0:02:44"]
[BlackClock "0:01:18"]
[Board "100"]

1. e4 {[%clk 0:03:00]}  c5 {[%clk 0:02:59]} 2. Nf3 {[%clk 0:03:00]}  d6 {[%clk 0:03:00]} 3. d4 {[%clk 0:03:01]}  cxd4 {[%clk 0:03:01]} 4. Nxd4 {[%clk 0:03:01]}  Nf6 {[%clk 0:03:01]} 5. Nc3 {[%clk 0:03:02]}  g6 {[%clk 0:03:02]} 6. Be3 {[%clk 0:03:02]}  Bg7 {[%clk 0:03:02]} 7. f3 {[%clk 0:03:03]}  O-O {[%clk 0:03:02]} 8. Qd2 {[%clk 0:03:03]}  Nc6 {[%clk 0:03:03]} 9. O-O-O {[%clk 0:03:04]}  d5 {[%clk 0:03:02]} 10. Kb1 {[%clk 0:03:03]}  Nxd4 {[%clk 0:02:31]} 11. e5 {[%clk 0:02:59]}  Nf5 {[%clk 0:02:21]} 12. exf6 {[%clk 0:02:56]}  exf6 {[%clk 0:02:16]} 13. Nxd5 {[%clk 0:02:56]}  Be6 {[%clk 0:02:01]} 14. Bc5 {[%clk 0:02:50]}  Re8 {[%clk 0:01:18]} 15. Bb5 {[%clk 0:02:44]} 1-0


[Site "https://www.chess.com"]

[Event "Titled Tuesday Blitz July 11 Early 2023"]
[White "Mmukka"]
[Black "Gyulamiryan-koryun"]
[WhiteElo "2440"]
[BlackElo "1859"]
[Result "1-0"]
[Round "11"]
[TimeControl "180+2"]
[Date "2023.07.11"]
[WhiteClock "0:01:25"]
[BlackClock "0:00:00"]
[Board "102"]

1. e4 {[%clk 0:02:59]}  e5 {[%clk 0:02:57]} 2. Nf3 {[%clk 0:02:59]}  Nc6 {[%clk 0:02:56]} 3. Bb5 {[%clk 0:02:59]}  a6 {[%clk 0:02:55]} 4. Ba4 {[%clk 0:02:59]}  Nf6 {[%clk 0:02:54]} 5. d3 {[%clk 0:02:59]}  d6 {[%clk 0:02:52]} 6. c3 {[%clk 0:02:59]}  b5 {[%clk 0:02:52]} 7. Bc2 {[%clk 0:02:58]}  Bg4 {[%clk 0:02:51]} 8. Nbd2 {[%clk 0:02:57]}  Be7 {[%clk 0:02:51]} 9. O-O {[%clk 0:02:53]}  O-O {[%clk 0:02:51]} 10. Re1 {[%clk 0:02:53]}  Qc8 {[%clk 0:02:44]} 11. Nf1 {[%clk 0:02:52]}  Bh5 {[%clk 0:02:42]} 12. Ng3 {[%clk 0:02:51]}  Bg6 {[%clk 0:02:41]} 13. Nh4 {[%clk 0:02:51]}  Qg4 {[%clk 0:02:28]} 14. Nhf5 {[%clk 0:02:39]}  Qxd1 {[%clk 0:02:20]} 15. Rxd1 {[%clk 0:02:40]}  Bd8 {[%clk 0:02:17]} 16. a4 {[%clk 0:02:38]}  b4 {[%clk 0:02:16]} 17. d4 {[%clk 0:02:28]}  b3 {[%clk 0:01:59]} 18. Bxb3 {[%clk 0:02:20]}  Nxe4 {[%clk 0:01:59]} 19. Bd5 {[%clk 0:02:11]}  Nxg3 {[%clk 0:01:54]} 20. Nxg3 {[%clk 0:02:10]}  Bh4 {[%clk 0:01:21]} 21. Bxc6 {[%clk 0:02:09]}  Rab8 {[%clk 0:01:21]} 22. dxe5 {[%clk 0:02:02]}  dxe5 {[%clk 0:01:20]} 23. b4 {[%clk 0:02:00]}  Bf6 {[%clk 0:01:07]} 24. Be3 {[%clk 0:01:56]}  Bc2 {[%clk 0:01:01]} 25. Rd2 {[%clk 0:01:54]}  Bb3 {[%clk 0:00:59]} 26. Ne4 {[%clk 0:01:52]}  Be7 {[%clk 0:00:57]} 27. Nc5 {[%clk 0:01:52]}  Be6 {[%clk 0:00:52]} 28. Nxa6 {[%clk 0:01:37]}  Rbd8 {[%clk 0:00:46]} 29. Rad1 {[%clk 0:01:37]}  Rxd2 {[%clk 0:00:39]} 30. Rxd2 {[%clk 0:01:37]}  Bd6 {[%clk 0:00:35]} 31. Bc5 {[%clk 0:01:34]}  Bc4 {[%clk 0:00:30]} 32. Bxd6 {[%clk 0:01:30]}  cxd6 {[%clk 0:00:22]} 33. b5 {[%clk 0:01:29]}  Rd8 {[%clk 0:00:14]} 34. Nb4 {[%clk 0:01:27]}  Kf8 {[%clk 0:00:10]} 35. b6 {[%clk 0:01:26]}  Ke7 {[%clk 0:00:00]} 36. a5 {[%clk 0:01:25]} 1-0


[Site "https://www.chess.com"]

[Event "Titled Tuesday Blitz July 11 Early 2023"]
[White "Kantans, Toms"]
[Black "Ishowmoves57"]
[WhiteFideId "11602945"]
[WhiteElo "2619"]
[BlackElo "2170"]
[Result "1-0"]
[Round "11"]
[TimeControl "180+2"]
[Date "2023.07.11"]
[WhiteClock "0:00:08"]
[BlackClock "0:00:00"]
[Board "103"]

1. e4 {[%clk 0:03:00]}  c5 {[%clk 0:02:59]} 2. Nf3 {[%clk 0:03:00]}  Nc6 {[%clk 0:02:58]} 3. Bb5 {[%clk 0:03:00]}  g6 {[%clk 0:02:58]} 4. c3 {[%clk 0:03:00]}  Bg7 {[%clk 0:02:54]} 5. d4 {[%clk 0:03:00]}  cxd4 {[%clk 0:02:50]} 6. cxd4 {[%clk 0:03:00]}  d5 {[%clk 0:02:50]} 7. exd5 {[%clk 0:02:59]}  Qxd5 {[%clk 0:02:48]} 8. Nc3 {[%clk 0:02:59]}  Qd8 {[%clk 0:01:42]} 9. d5 {[%clk 0:02:59]}  a6 {[%clk 0:01:41]} 10. Ba4 {[%clk 0:02:55]}  b5 {[%clk 0:01:41]} 11. dxc6 {[%clk 0:02:55]}  bxa4 {[%clk 0:01:41]} 12. Qxa4 {[%clk 0:02:54]}  Nf6 {[%clk 0:01:36]} 13. O-O {[%clk 0:02:54]}  O-O {[%clk 0:01:35]} 14. Rd1 {[%clk 0:02:51]}  Qc7 {[%clk 0:01:33]} 15. Bf4 {[%clk 0:02:49]}  Qb6 {[%clk 0:01:28]} 16. Be5 {[%clk 0:02:49]}  Bg4 {[%clk 0:01:24]} 17. Bd4 {[%clk 0:01:27]}  Qc7 {[%clk 0:01:12]} 18. Rd3 {[%clk 0:01:13]}  Bxf3 {[%clk 0:01:06]} 19. Rxf3 {[%clk 0:01:14]}  Rfc8 {[%clk 0:01:02]} 20. Bxf6 {[%clk 0:01:11]}  Bxf6 {[%clk 0:00:58]} 21. Nd5 {[%clk 0:00:57]}  Qxc6 {[%clk 0:00:55]} 22. Nxf6+ {[%clk 0:00:48]}  exf6 {[%clk 0:00:53]} 23. Qxc6 {[%clk 0:00:48]}  Rxc6 {[%clk 0:00:54]} 24. g3 {[%clk 0:00:46]}  Rc2 {[%clk 0:00:50]} 25. b3 {[%clk 0:00:44]}  Rd8 {[%clk 0:00:49]} 26. Rxf6 {[%clk 0:00:43]}  Rdd2 {[%clk 0:00:49]} 27. a4 {[%clk 0:00:38]}  Kg7 {[%clk 0:00:46]} 28. Rf3 {[%clk 0:00:35]}  Rb2 {[%clk 0:00:46]} 29. Rc1 {[%clk 0:00:31]}  Rd7 {[%clk 0:00:37]} 30. Rc6 {[%clk 0:00:27]}  Rb7 {[%clk 0:00:34]} 31. Rcc3 {[%clk 0:00:26]}  a5 {[%clk 0:00:32]} 32. h4 {[%clk 0:00:26]}  h5 {[%clk 0:00:31]} 33. Kf1 {[%clk 0:00:25]}  Rb1+ {[%clk 0:00:27]} 34. Kg2 {[%clk 0:00:26]}  Rb2 {[%clk 0:00:27]} 35. Rc5 {[%clk 0:00:25]}  R2xb3 {[%clk 0:00:22]} 36. Rxb3 {[%clk 0:00:25]}  Rxb3 {[%clk 0:00:22]} 37. Rxa5 {[%clk 0:00:26]}  Ra3 {[%clk 0:00:22]} 38. Ra7 {[%clk 0:00:25]}  Kf6 {[%clk 0:00:19]} 39. a5 {[%clk 0:00:25]}  Kg7 {[%clk 0:00:19]} 40. a6 {[%clk 0:00:24]}  Kf6 {[%clk 0:00:19]} 41. Ra8 {[%clk 0:00:21]}  Kg7 {[%clk 0:00:19]} 42. Kf1 {[%clk 0:00:21]}  Ra2 {[%clk 0:00:19]} 43. Ke1 {[%clk 0:00:21]}  Kf6 {[%clk 0:00:18]} 44. f3 {[%clk 0:00:21]}  Kg7 {[%clk 0:00:18]} 45. Kd1 {[%clk 0:00:21]}  Ra3 {[%clk 0:00:18]} 46. Ke2 {[%clk 0:00:20]}  Ra2+ {[%clk 0:00:18]} 47. Ke3 {[%clk 0:00:21]}  Ra3+ {[%clk 0:00:19]} 48. Ke4 {[%clk 0:00:21]}  Ra4+ {[%clk 0:00:19]} 49. Kd5 {[%clk 0:00:21]}  Ra3 {[%clk 0:00:19]} 50. Kc6 {[%clk 0:00:16]}  Rxf3 {[%clk 0:00:18]} 51. Rb8 {[%clk 0:00:09]}  Rc3+ {[%clk 0:00:16]} 52. Kb7 {[%clk 0:00:08]}  Rb3+ {[%clk 0:00:16]} 53. Kc7 {[%clk 0:00:06]}  Ra3 {[%clk 0:00:15]} 54. Kb7 {[%clk 0:00:05]}  Rb3+ {[%clk 0:00:15]} 55. Ka8 {[%clk 0:00:05]}  Rxg3 {[%clk 0:00:15]} 56. a7 {[%clk 0:00:06]}  Rh3 {[%clk 0:00:14]} 57. Rb4 {[%clk 0:00:06]}  Ra3 {[%clk 0:00:13]} 58. Kb7 {[%clk 0:00:06]}  Kf6 {[%clk 0:00:12]} 59. Rb6+ {[%clk 0:00:06]}  Kf5 {[%clk 0:00:11]} 60. Ra6 {[%clk 0:00:07]}  Rb3+ {[%clk 0:00:10]} 61. Kc7 {[%clk 0:00:07]}  Rc3+ {[%clk 0:00:10]} 62. Kd7 {[%clk 0:00:08]}  Rd3+ {[%clk 0:00:10]} 63. Ke7 {[%clk 0:00:08]}  Rd8 {[%clk 0:00:00]} 64. Kxd8 {[%clk 0:00:08]} 1-0


[Site "https://www.chess.com"]

[Event "Titled Tuesday Blitz July 11 Early 2023"]
[White "Sebag, Marie"]
[Black "Nithyalakshmi, Sivanesan"]
[WhiteFideId "617822"]
[BlackFideId "5706955"]
[WhiteElo "2515"]
[BlackElo "2359"]
[Result "1-0"]
[Round "11"]
[TimeControl "180+2"]
[Date "2023.07.11"]
[WhiteClock "0:01:13"]
[BlackClock "0:00:14"]
[Board "107"]

1. d4 {[%clk 0:02:38]}  Nf6 {[%clk 0:02:58]} 2. c4 {[%clk 0:02:36]}  c5 {[%clk 0:02:58]} 3. d5 {[%clk 0:02:36]}  b5 {[%clk 0:02:58]} 4. cxb5 {[%clk 0:02:36]}  a6 {[%clk 0:02:58]} 5. e3 {[%clk 0:02:36]}  e6 {[%clk 0:02:57]} 6. Nc3 {[%clk 0:02:35]}  exd5 {[%clk 0:02:45]} 7. Nxd5 {[%clk 0:02:34]}  Bb7 {[%clk 0:02:35]} 8. e4 {[%clk 0:02:22]}  axb5 {[%clk 0:02:10]} 9. Nf3 {[%clk 0:02:04]}  Be7 {[%clk 0:01:51]} 10. Nxf6+ {[%clk 0:01:56]}  Bxf6 {[%clk 0:01:49]} 11. e5 {[%clk 0:01:57]}  Qe7 {[%clk 0:01:38]} 12. Bxb5 {[%clk 0:01:51]}  Bxe5 {[%clk 0:01:29]} 13. O-O {[%clk 0:01:48]}  O-O {[%clk 0:01:26]} 14. Re1 {[%clk 0:01:45]}  d6 {[%clk 0:01:22]} 15. Bf4 {[%clk 0:01:41]}  Nc6 {[%clk 0:01:00]} 16. Bxc6 {[%clk 0:01:33]}  Bxc6 {[%clk 0:00:59]} 17. Bxe5 {[%clk 0:01:33]}  Bxf3 {[%clk 0:00:36]} 18. Bxd6 {[%clk 0:01:17]}  Bxd1 {[%clk 0:00:35]} 19. Bxe7 {[%clk 0:01:16]}  Rfe8 {[%clk 0:00:18]} 20. Raxd1 {[%clk 0:01:13]}  Ra7 {[%clk 0:00:14]} 21. Bxc5 {[%clk 0:01:13]} 1-0


[Site "https://www.chess.com"]

[Event "Titled Tuesday Blitz July 11 Early 2023"]
[White "Papayan, Oleg"]
[Black "Barbot, Pierre"]
[WhiteFideId "4193911"]
[BlackFideId "663727"]
[WhiteElo "2511"]
[BlackElo "2348"]
[Result "1-0"]
[Round "11"]
[TimeControl "180+2"]
[Date "2023.07.11"]
[WhiteClock "0:00:04"]
[BlackClock "0:00:00"]
[Board "108"]

1. Nf3 {[%clk 0:02:53]}  Nf6 {[%clk 0:02:59]} 2. c4 {[%clk 0:02:53]}  g6 {[%clk 0:02:41]} 3. Nc3 {[%clk 0:02:53]}  d5 {[%clk 0:02:41]} 4. cxd5 {[%clk 0:02:52]}  Nxd5 {[%clk 0:02:41]} 5. e4 {[%clk 0:02:52]}  Nxc3 {[%clk 0:02:38]} 6. dxc3 {[%clk 0:02:53]}  Qxd1+ {[%clk 0:02:36]} 7. Kxd1 {[%clk 0:02:54]}  Bg7 {[%clk 0:02:35]} 8. Bf4 {[%clk 0:02:51]}  c6 {[%clk 0:02:24]} 9. Kc2 {[%clk 0:02:44]}  Nd7 {[%clk 0:02:16]} 10. Bc4 {[%clk 0:02:25]}  Nc5 {[%clk 0:02:08]} 11. Rhe1 {[%clk 0:02:20]}  b5 {[%clk 0:02:07]} 12. Bf1 {[%clk 0:02:09]}  Be6 {[%clk 0:01:59]} 13. Nd4 {[%clk 0:01:54]}  Bd7 {[%clk 0:01:52]} 14. e5 {[%clk 0:01:40]}  Bf5+ {[%clk 0:01:44]} 15. Nxf5 {[%clk 0:01:40]}  gxf5 {[%clk 0:01:42]} 16. Rad1 {[%clk 0:01:26]}  O-O {[%clk 0:01:25]} 17. b4 {[%clk 0:01:25]}  Ne6 {[%clk 0:01:22]} 18. Bc1 {[%clk 0:01:23]}  Rfd8 {[%clk 0:01:18]} 19. f4 {[%clk 0:01:18]}  a5 {[%clk 0:00:59]} 20. Rxd8+ {[%clk 0:01:15]}  Rxd8 {[%clk 0:00:56]} 21. Rd1 {[%clk 0:01:15]}  Ra8 {[%clk 0:00:44]} 22. Kb3 {[%clk 0:00:56]}  axb4 {[%clk 0:00:41]} 23. cxb4 {[%clk 0:00:57]}  f6 {[%clk 0:00:41]} 24. exf6 {[%clk 0:00:23]}  Bxf6 {[%clk 0:00:42]} 25. Be3 {[%clk 0:00:24]}  Nc7 {[%clk 0:00:23]} 26. Bd3 {[%clk 0:00:18]}  e6 {[%clk 0:00:21]} 27. Rc1 {[%clk 0:00:16]}  Nd5 {[%clk 0:00:17]} 28. Bd2 {[%clk 0:00:17]}  Ra6 {[%clk 0:00:12]} 29. g3 {[%clk 0:00:16]}  Kf7 {[%clk 0:00:13]} 30. a3 {[%clk 0:00:11]}  Ke7 {[%clk 0:00:13]} 31. Re1 {[%clk 0:00:11]}  Kd6 {[%clk 0:00:11]} 32. h3 {[%clk 0:00:11]}  Ra8 {[%clk 0:00:11]} 33. g4 {[%clk 0:00:11]}  fxg4 {[%clk 0:00:10]} 34. hxg4 {[%clk 0:00:12]}  Rg8 {[%clk 0:00:09]} 35. g5 {[%clk 0:00:12]}  Bd4 {[%clk 0:00:07]} 36. Bxh7 {[%clk 0:00:12]}  Rf8 {[%clk 0:00:07]} 37. Re4 {[%clk 0:00:06]}  Bg7 {[%clk 0:00:04]} 38. a4 {[%clk 0:00:03]}  bxa4+ {[%clk 0:00:03]} 39. Kxa4 {[%clk 0:00:04]}  c5 {[%clk 0:00:03]} 40. bxc5+ {[%clk 0:00:04]}  Kxc5 {[%clk 0:00:03]} 41. Rxe6 {[%clk 0:00:03]}  Ra8+ {[%clk 0:00:01]} 42. Kb3 {[%clk 0:00:04]}  Rb8+ {[%clk 0:00:01]} 43. Kc2 {[%clk 0:00:05]}  Bd4 {[%clk 0:00:01]} 44. g6 {[%clk 0:00:04]}  Kc4 {[%clk 0:00:02]} 45. Rc6+ {[%clk 0:00:04]}  Kb5 {[%clk 0:00:02]} 46. Rd6 {[%clk 0:00:03]}  Kc5 {[%clk 0:00:02]} 47. Rd7 {[%clk 0:00:03]}  Rb2+ {[%clk 0:00:03]} 48. Kd1 {[%clk 0:00:03]}  Kc4 {[%clk 0:00:04]} 49. g7 {[%clk 0:00:02]}  Nc3+ {[%clk 0:00:03]} 50. Bxc3 {[%clk 0:00:02]}  Kxc3 {[%clk 0:00:03]} 51. g8=Q {[%clk 0:00:02]}  Rd2+ {[%clk 0:00:03]} 52. Ke1 {[%clk 0:00:03]}  Bf2+ {[%clk 0:00:03]} 53. Kf1 {[%clk 0:00:03]}  Rxd7 {[%clk 0:00:03]} 54. Qc8+ {[%clk 0:00:04]}  Rc7 {[%clk 0:00:00]} 55. Qxc7+ {[%clk 0:00:04]} 1-0


[Site "https://www.chess.com"]

[Event "Titled Tuesday Blitz July 11 Early 2023"]
[White "Nikologorsky, Matfei"]
[Black "Clawitter, Craig"]
[WhiteFideId "24102474"]
[BlackFideId "2023105"]
[WhiteElo "2412"]
[BlackElo "2298"]
[Result "1/2-1/2"]
[Round "11"]
[TimeControl "180+2"]
[Date "2023.07.11"]
[WhiteClock "0:00:33"]
[BlackClock "0:00:05"]
[Board "112"]

1. e4 {[%clk 0:03:00]}  e6 {[%clk 0:02:58]} 2. d4 {[%clk 0:03:00]}  d5 {[%clk 0:02:56]} 3. Nd2 {[%clk 0:03:00]}  Be7 {[%clk 0:02:56]} 4. Bd3 {[%clk 0:02:57]}  c5 {[%clk 0:02:56]} 5. exd5 {[%clk 0:02:56]}  Qxd5 {[%clk 0:02:55]} 6. dxc5 {[%clk 0:02:57]}  Nf6 {[%clk 0:02:54]} 7. Ngf3 {[%clk 0:02:56]}  Nbd7 {[%clk 0:02:53]} 8. c6 {[%clk 0:02:53]}  Qxc6 {[%clk 0:02:52]} 9. O-O {[%clk 0:02:51]}  O-O {[%clk 0:02:47]} 10. Qe2 {[%clk 0:02:51]}  Nc5 {[%clk 0:02:47]} 11. Bb5 {[%clk 0:02:47]}  Qc7 {[%clk 0:02:44]} 12. Nb3 {[%clk 0:02:16]}  a6 {[%clk 0:02:39]} 13. Nxc5 {[%clk 0:02:14]}  Bxc5 {[%clk 0:02:30]} 14. Bd3 {[%clk 0:02:14]}  b5 {[%clk 0:02:19]} 15. Bg5 {[%clk 0:02:04]}  Bb7 {[%clk 0:02:19]} 16. Bxf6 {[%clk 0:02:03]}  gxf6 {[%clk 0:02:20]} 17. a4 {[%clk 0:01:59]}  Qf4 {[%clk 0:01:38]} 18. Nd2 {[%clk 0:01:56]}  f5 {[%clk 0:01:09]} 19. axb5 {[%clk 0:01:49]}  axb5 {[%clk 0:01:05]} 20. Rxa8 {[%clk 0:01:50]}  Rxa8 {[%clk 0:00:56]} 21. Bxb5 {[%clk 0:01:48]}  Kh8 {[%clk 0:00:53]} 22. Re1 {[%clk 0:01:25]}  Rg8 {[%clk 0:00:40]} 23. Qe5+ {[%clk 0:01:01]}  Qxe5 {[%clk 0:00:40]} 24. Rxe5 {[%clk 0:01:02]}  Rxg2+ {[%clk 0:00:40]} 25. Kf1 {[%clk 0:01:01]}  Rxf2+ {[%clk 0:00:18]} 26. Ke1 {[%clk 0:01:01]}  Bd4 {[%clk 0:00:14]} 27. Re2 {[%clk 0:00:57]}  Rxe2+ {[%clk 0:00:12]} 28. Kxe2 {[%clk 0:00:58]}  Bxb2 {[%clk 0:00:13]} 29. Nc4 {[%clk 0:00:56]}  Bf6 {[%clk 0:00:12]} 30. Nd6 {[%clk 0:00:55]}  Be4 {[%clk 0:00:11]} 31. Nxe4 {[%clk 0:00:52]}  fxe4 {[%clk 0:00:11]} 32. Bc6 {[%clk 0:00:53]}  Be5 {[%clk 0:00:11]} 33. h3 {[%clk 0:00:52]}  f5 {[%clk 0:00:11]} 34. Bd7 {[%clk 0:00:52]}  Kg7 {[%clk 0:00:10]} 35. Bxe6 {[%clk 0:00:53]}  Kf6 {[%clk 0:00:11]} 36. Bg8 {[%clk 0:00:48]}  h6 {[%clk 0:00:11]} 37. Bh7 {[%clk 0:00:48]}  Bc3 {[%clk 0:00:10]} 38. Ke3 {[%clk 0:00:45]}  Kg5 {[%clk 0:00:09]} 39. Ke2 {[%clk 0:00:32]}  Kf4 {[%clk 0:00:09]} 40. Kf2 {[%clk 0:00:33]}  Bd4+ {[%clk 0:00:08]} 41. Ke2 {[%clk 0:00:33]}  Bc3 {[%clk 0:00:08]} 42. Kf2 {[%clk 0:00:33]}  Bd4+ {[%clk 0:00:05]} 43. Ke2 {[%clk 0:00:33]}  Bc3 {[%clk 0:00:05]} 1/2-1/2


[Site "https://www.chess.com"]